fUST/lending_fUST_20250810
["ID","MTS","AMOUNT","RATE_DAILY","PERIOD"]
[378162680,1754755842766,-460.0,0.00021674,2]
[378162681,1754755842775,-460.0,0.00021674,2]
[378162682,1754755842785,-460.0,0.00021674,2]
[378162683,1754755842794,-460.0,0.00021674,2]
[378162684,1754755842804,-460.0,0.00021674,2]
[378162685,1754755842813,-508.1440478,0.00021674,2]
[378162687,1754755842823,-460.0,0.00021674,2]
[378162689,1754755842832,-461.29878547,0.00021674,2]
[378162691,1754755842841,-460.0,0.00021674,2]
[378162692,1754755842851,-460.0,0.00021674,2]
[378162694,1754755842860,-460.0,0.00021674,2]
[378162695,1754755842869,-460.0,0.00021674,2]
[378162696,1754755842879,-460.0,0.00021674,2]
[378162697,1754755842888,-465.73574881,0.00021674,2]
[378162698,1754755842897,-460.0,0.00021674,2]
[378162700,1754755842907,-343.79756744,0.00021674,2]
[378162701,1754755842916,-215.94527272,0.00021674,2]
[378162702,1754755842925,-461.88001973,0.00021674,2]
[378162703,1754755842935,-460.0,0.00021674,2]
[378162704,1754755842944,-460.0,0.00021674,2]
[378162705,1754755842954,-460.0,0.00021674,2]
[378162706,1754755842963,-460.0,0.00021674,2]
[378162707,1754755842973,-460.0,0.00021674,2]
[378162708,1754755842983,-460.0,0.00021674,2]
[378162709,1754755842993,-460.0,0.00021674,2]
[378162711,1754755843003,-460.0,0.00021674,2]
[378162713,1754755843012,-460.0,0.00021674,2]
[378162715,1754755843022,-460.0,0.00021674,2]
[378162717,1754755843031,-460.0,0.00021674,2]
[378162718,1754755843042,-460.0,0.00021674,2]
[378162720,1754755843052,-460.0,0.00021674,2]
[378162722,1754755843062,-460.0,0.00021674,2]
[378162725,1754755843072,-460.0,0.00021674,2]
[378162726,1754755843082,-470.06158457,0.00021674,2]
[378162728,1754755843092,-236.90052705,0.00021674,2]
[378162730,1754755843101,-460.0,0.00021674,2]
[378162732,1754755843110,-460.0,0.00021674,2]
[378162733,1754755843119,-460.0,0.00021674,2]
[378162735,1754755843128,-465.22593109,0.00021674,2]
[378162736,1754755843137,-460.0,0.00021674,2]
[378162737,1754755843147,-460.0,0.00021674,2]
[378162739,1754755843156,-460.0,0.00021674,2]
[378162741,1754755843166,-460.0,0.00021674,2]
[378162742,1754755843175,-500.0,0.00021674,2]
[378162743,1754755843185,-460.0,0.00021674,2]
[378162744,1754755843194,-227.23214898,0.00021674,2]
[378162745,1754755843204,-465.65048299,0.00021674,2]
[378162746,1754755843213,-561.87654357,0.00021674,2]
[378162747,1754755843223,-460.0,0.00021674,2]
[378162748,1754755843232,-460.0,0.00021674,2]
[378162750,1754755843242,-461.77145001,0.00021674,2]
[378162752,1754755843252,-460.0,0.00021674,2]
[378162753,1754755843262,-460.0,0.00021674,2]
[378162755,1754755843271,-460.0,0.00021674,2]
[378162757,1754755843281,-460.0,0.00021674,2]
[378162759,1754755843291,-460.0,0.00021674,2]
[378162761,1754755843300,-460.0,0.00021674,2]
[378162763,1754755843311,-460.0,0.00021674,2]
[378162764,1754755843321,-461.90077487,0.00021674,2]
[378162765,1754755843330,-460.0,0.00021674,2]
[378162766,1754755843340,-460.96601076,0.00021674,2]
[378162768,1754755843349,-460.0,0.00021674,2]
[378162769,1754755843359,-460.0,0.00021674,2]
[378162770,1754755843368,-460.0,0.00021674,2]
[378162772,1754755843378,-460.0,0.00021674,2]
[378162773,1754755843387,-460.0,0.00021674,2]
[378162774,1754755843396,-460.0,0.00021674,2]
[378162775,1754755843405,-460.0,0.00021674,2]
[378162776,1754755843415,-460.0,0.00021674,2]
[378162777,1754755843424,-460.0,0.00021674,2]
[378162778,1754755843434,-460.74209807,0.00021674,2]
[378162779,1754755843443,-460.0,0.00021674,2]
[378162780,1754755843454,-276.66995422,0.00021674,2]
[378162781,1754755843465,-460.0,0.00021674,2]
[378162782,1754755843474,-460.0,0.00021674,2]
[378162783,1754755843484,-460.0,0.00021674,2]
[378162784,1754755843493,-181.62303124,0.00021674,2]
[378162785,1754755843504,-460.0,0.00021674,2]
[378162787,1754755843513,-460.0,0.00021674,2]
[378162788,1754755843522,-460.0,0.00021674,2]
[378162790,1754755843532,-460.0,0.00021674,2]
[378162792,1754755843546,-460.0,0.00021674,2]
[378162793,1754755843560,-460.87794667,0.00021674,2]
[378162794,1754755843570,-460.0,0.00021674,2]
[378162795,1754755843580,-460.0,0.00021674,2]
[378162796,1754755843589,-468.67217256,0.00021674,2]
[378162797,1754755843598,-460.0,0.00021674,2]
[378162799,1754755843607,-460.0,0.00021674,2]
[378162801,1754755843617,-460.0,0.00021674,2]
[378162802,1754755843626,-462.36799033,0.00021674,2]
[378162803,1754755843636,-460.0,0.00021674,2]
[378162804,1754755843645,-460.0,0.00021674,2]
[378162805,1754755843654,-460.0,0.00021674,2]
[378162806,1754755843664,-460.0,0.00021674,2]
[378162807,1754755843673,-460.0,0.00021674,2]
[378162808,1754755843682,-460.0,0.00021674,2]
[378162809,1754755843692,-460.0,0.00021674,2]
[378162810,1754755843702,-460.0,0.00021674,2]
[378162812,1754755843711,-460.0,0.00021674,2]
[378162813,1754755843720,-460.0,0.00021674,2]
[378162814,1754755843730,-464.01261431,0.00021674,2]
[378162815,1754755843740,-460.0,0.00021674,2]
[378162816,1754755843750,-460.0,0.00021674,2]
[378162817,1754755843759,-460.0,0.00021674,2]
[378162818,1754755843770,-460.0,0.00021674,2]
[378162819,1754755843779,-460.0,0.00021674,2]
[378162820,1754755843789,-460.0,0.00021674,2]
[378162821,1754755843798,-456.68591031,0.00021674,2]
[378162822,1754755843807,-460.0,0.00021674,2]
[378162823,1754755843817,-460.0,0.00021682,2]
[378162824,1754755843827,-460.0,0.00021682,2]
[378162825,1754755843837,-460.0,0.00021682,2]
[378162826,1754755843847,-990.4,0.00021682,2]
[378162827,1754755843856,-460.0,0.00021682,2]
[378162828,1754755843866,-460.0,0.00021682,2]
[378162829,1754755843876,-583.12,0.00021682,2]
[378162830,1754755843886,-460.0,0.00021682,2]
[378162831,1754755843895,-495.89,0.00021682,2]
[378162832,1754755843903,-460.0,0.00021682,2]
[378162833,1754755843912,-469.39878952,0.00021682,2]
[378162834,1754755843921,-1042.63,0.00021682,2]
[378162835,1754755843930,-460.0,0.00021682,2]
[378162836,1754755843940,-461.15573356,0.00021682,2]
[378162837,1754755843949,-595.41,0.00021682,2]
[378162838,1754755843959,-460.0,0.00021682,2]
[378162839,1754755843969,-403.28311453,0.00021683,2]
[378162840,1754755843978,-460.0,0.00021683,2]
[378162841,1754755843989,-460.0,0.00021683,2]
[378162842,1754755843998,-527.04,0.00021683,2]
[378162843,1754755844008,-460.0,0.00021683,2]
[378162844,1754755844017,-460.0,0.00021683,2]
[378162845,1754755844026,-460.0,0.00021683,2]
[378162846,1754755844036,-460.0,0.00021683,2]
[378162847,1754755844045,-460.0,0.00021683,2]
[378162848,1754755844055,-460.0,0.00021683,2]
[378162849,1754755844064,-460.0,0.00021683,2]
[378162850,1754755844074,-754.9,0.00021683,2]
[378162851,1754755844083,-460.0,0.00021683,2]
[378162852,1754755844093,-460.0,0.00021683,2]
[378162853,1754755844103,-460.0,0.00021683,2]
[378162854,1754755844112,-460.0,0.00021683,2]
[378162855,1754755844122,-460.0,0.00021683,2]
[378162856,1754755844139,-465.1738927,0.00021683,2]
[378162857,1754755844156,-460.0,0.00021683,2]
[378162858,1754755844166,-460.0,0.00021683,2]
[378162859,1754755844176,-460.0,0.00021683,2]
[378162860,1754755844185,-216.67817786,0.00021683,2]
[378162861,1754755844195,-460.0,0.00021683,2]
[378162862,1754755844204,-460.0,0.00021683,2]
[378162863,1754755844214,-460.0,0.00021683,2]
[378162864,1754755844223,-460.0,0.00021683,2]
[378162865,1754755844233,-460.0,0.00021683,2]
[378162866,1754755844244,-460.0,0.00021683,2]
[378162867,1754755844254,-460.0,0.00021683,2]
[378162868,1754755844264,-460.0,0.00021683,2]
[378162869,1754755844274,-460.0,0.00021683,2]
[378162870,1754755844284,-572.34423987,0.00021683,2]
[378162871,1754755844293,-1510.77139384,0.00021689,2]
[378162872,1754755844303,-277.0,0.00021733,2]
[378162873,1754755844312,-2285.26804654,0.00021746,2]
[378162874,1754755844324,-1510.77139384,0.00021757,2]
[378162875,1754755844334,-824.03,0.00021827,2]
[378162876,1754755844344,-460.0,0.00021827,2]
[378162877,1754755844354,-2116.47,0.00021827,2]
[378162878,1754755844364,-460.0,0.00021827,2]
[378162879,1754755844373,-460.0,0.00021827,2]
[378162880,1754755844383,-460.0,0.00021827,2]
[378162881,1754755844393,-460.0,0.00021827,2]
[378162882,1754755844403,-1719.64,0.00021827,2]
[378162883,1754755844413,-1421.88,0.00021827,2]
[378162884,1754755844423,-460.0,0.00021827,2]
[378162885,1754755844432,-460.0,0.00021827,2]
[378162886,1754755844442,-460.0,0.00021827,2]
[378162887,1754755844452,-460.0,0.00021827,2]
[378162888,1754755844464,-460.0,0.00021827,2]
[378162889,1754755844473,-460.0,0.00021827,2]
[378162890,1754755844483,-478.03908703,0.00021827,2]
[378162891,1754755844493,-460.0,0.00021827,2]
[378162892,1754755844503,-460.0,0.00021827,2]
[378162893,1754755844513,-710.3,0.00021827,2]
[378162894,1754755844522,-864.02,0.00021827,2]
[378162895,1754755844532,-659.44,0.00021827,2]
[378162896,1754755844541,-460.0,0.00021827,2]
[378162897,1754755844550,-460.0,0.00021827,2]
[378162898,1754755844560,-460.0,0.00021827,2]
[378162899,1754755844578,-460.0,0.00021827,2]
[378162900,1754755844587,-460.0,0.00021827,2]
[378162901,1754755844596,-460.0,0.00021827,2]
[378162902,1754755844605,-460.0,0.00021827,2]
[378162903,1754755844614,-1697.12,0.00021827,2]
[378162904,1754755844623,-527.59,0.00021827,2]
[378162905,1754755844633,-500.0,0.00021827,2]
[378162906,1754755844642,-460.0,0.00021827,2]
[378162907,1754755844652,-460.0,0.00021827,2]
[378162908,1754755844661,-500.0,0.00021828,2]
[378162909,1754755844670,-460.0,0.00021828,2]
[378162910,1754755844679,-460.0,0.00021828,2]
[378162911,1754755844688,-460.0,0.00021828,2]
[378162912,1754755844698,-460.0,0.00021828,2]
[378162913,1754755844707,-188.14483368,0.00021828,2]
[378162914,1754755844717,-1063.74,0.00021828,2]
[378162915,1754755844726,-460.0,0.00021828,2]
[378162916,1754755844735,-460.0,0.00021828,2]
[378162917,1754755844745,-1479.52,0.00021828,2]
[378162918,1754755844755,-3505.32,0.00021828,2]
[378162919,1754755844764,-460.0,0.00021828,2]
[378162920,1754755844773,-850.09,0.00021828,2]
[378162921,1754755844782,-1179.42,0.00021828,2]
[378162922,1754755844791,-472.95,0.00021828,2]
[378162923,1754755844800,-460.0,0.00021856,2]
[378162924,1754755844809,-460.0,0.00021856,2]
[378162925,1754755844819,-460.0,0.00021856,2]
[378162926,1754755844829,-460.0,0.00021856,2]
[378162927,1754755844838,-460.0,0.00021857,2]
[378162928,1754755844847,-461.58625672,0.00021857,2]
[378162929,1754755844856,-460.0,0.00021857,2]
[378162930,1754755844865,-460.0,0.00021857,2]
[378162931,1754755844874,-460.0,0.00021857,2]
[378162932,1754755844883,-460.0,0.00021857,2]
[378162933,1754755844893,-460.0,0.00021857,2]
[378162934,1754755844902,-464.85762574,0.00021857,2]
[378162935,1754755844911,-466.0465682,0.00021857,2]
[378162936,1754755844920,-460.0,0.00021857,2]
[378162937,1754755844929,-460.0,0.00021857,2]
[378162938,1754755844939,-302.02749888,0.00021857,2]
[378162939,1754755844948,-460.0,0.00021857,2]
[378162940,1754755844957,-460.0,0.00021857,2]
[378162941,1754755844966,-460.0,0.00021857,2]
[378162942,1754755844975,-460.0,0.00021857,2]
[378162943,1754755844984,-460.0,0.00021857,2]
[378162944,1754755844994,-460.0,0.00021857,2]
[378162945,1754755845003,-460.0,0.00021857,2]
[378162946,1754755845013,-460.0,0.00021857,2]
[378162947,1754755845023,-460.0,0.00021857,2]
[378162948,1754755845033,-460.0,0.00021857,2]
[378162949,1754755845042,-460.0,0.00021857,2]
[378162950,1754755845051,-460.0,0.00021857,2]
[378162951,1754755845061,-460.0,0.00021857,2]
[378162952,1754755845072,-460.0,0.00021857,2]
[378162953,1754755845086,-460.0,0.00021857,2]
[378162954,1754755845096,-460.0,0.00021857,2]
[378162955,1754755845106,-460.0,0.00021857,2]
[378162956,1754755845116,-460.0,0.00021857,2]
[378162957,1754755845125,-460.0,0.00021857,2]
[378162958,1754755845136,-460.0,0.00021857,2]
[378162959,1754755845145,-460.0,0.00021857,2]
[378162960,1754755845154,-460.0,0.00021857,2]
[378162961,1754755845164,-198.09871778,0.00021857,2]
[378162962,1754755845174,-460.0,0.00021857,2]
[378162963,1754755845184,-473.14589949,0.00021857,2]
[378162964,1754755845194,-460.0,0.00021857,2]
[378162965,1754755845203,-462.47371454,0.00021857,2]
[378162966,1754755845213,-460.0,0.00021857,2]
[378162967,1754755845223,-463.38194712,0.00021857,2]
[378162968,1754755845232,-465.66966063,0.00021857,2]
[378162969,1754755845242,-460.0,0.00021857,2]
[378162970,1754755845252,-460.0,0.00021857,2]
[378162971,1754755845262,-460.0,0.00021857,2]
[378162972,1754755845272,-460.0,0.00021857,2]
[378162973,1754755845282,-554.93,0.00021857,2]
[378162974,1754755845291,-460.0,0.00021857,2]
[378162975,1754755845301,-918.02,0.00021857,2]
[378162976,1754755845312,-460.0,0.00021857,2]
[378162977,1754755845322,-460.0,0.00021857,2]
[378162978,1754755845331,-460.0,0.00021857,2]
[378162979,1754755845341,-249.17028115,0.00021857,2]
[378162980,1754755845351,-460.0,0.00021857,2]
[378162981,1754755845360,-460.0,0.00021857,2]
[378162982,1754755845370,-460.0,0.00021857,2]
[378162983,1754755845380,-460.0,0.00021857,2]
[378162984,1754755845390,-460.0,0.00021857,2]
[378162985,1754755845402,-460.0,0.00021857,2]
[378162986,1754755845412,-460.0,0.00021857,2]
[378162987,1754755845421,-460.0,0.00021857,2]
[378162988,1754755845431,-350.24697782,0.00021857,2]
[378162989,1754755845441,-463.63829504,0.00021857,2]
[378162990,1754755845451,-460.0,0.00021857,2]
[378162991,1754755845463,-460.0,0.00021857,2]
[378162992,1754755845472,-460.0,0.00021857,2]
[378162993,1754755845609,-460.0,0.00021857,2]
[378162994,1754755845620,-460.0,0.00021857,2]
[378162995,1754755845630,-460.0,0.00021857,2]
[378162996,1754755845640,-764.96,0.00021857,2]
[378162997,1754755845649,-460.0,0.00021857,2]
[378162998,1754755845659,-460.0,0.00021857,2]
[378162999,1754755845668,-460.0,0.00021857,2]
[378163000,1754755845678,-460.0,0.00021857,2]
[378163001,1754755845688,-460.0,0.00021857,2]
[378163002,1754755845699,-460.0,0.00021857,2]
[378163003,1754755845709,-460.0,0.00021857,2]
[378163005,1754755845719,-460.0,0.00021857,2]
[378163007,1754755845729,-460.0,0.00021857,2]
[378163008,1754755845739,-460.0,0.00021857,2]
[378163009,1754755845750,-460.0,0.00021857,2]
[378163010,1754755845760,-460.0,0.00021857,2]
[378163011,1754755845770,-460.0,0.00021857,2]
[378163012,1754755845779,-460.0,0.00021857,2]
[378163013,1754755845789,-473.8500139,0.00021857,2]
[378163014,1754755845799,-460.0,0.00021857,2]
[378163015,1754755845808,-460.0,0.00021857,2]
[378163016,1754755845817,-460.0,0.00021857,2]
[378163017,1754755845828,-465.48733202,0.00021857,2]
[378163018,1754755845838,-460.0,0.00021857,2]
[378163019,1754755845848,-156.73254023,0.00021857,2]
[378163020,1754755845857,-471.49829482,0.00021857,2]
[378163021,1754755845867,-460.0,0.00021857,2]
[378163022,1754755845876,-460.0,0.00021857,2]
[378163023,1754755845885,-460.0,0.00021857,2]
[378163024,1754755845895,-465.59172773,0.00021857,2]
[378163025,1754755845905,-460.0,0.00021857,2]
[378163026,1754755845914,-460.8125275,0.00021857,2]
[378163027,1754755845924,-679.77,0.00021857,2]
[378163028,1754755845934,-444.12532515,0.00021857,2]
[378163029,1754755845943,-460.0,0.00021857,2]
[378163030,1754755845962,-460.0,0.00021857,2]
[378163031,1754755845975,-460.0,0.00021857,2]
[378163032,1754755845986,-340.0,0.0002191,2]
[378163033,1754755845998,-500.0,0.00021917,2]
[378163034,1754755846008,-1891.4,0.00021917,2]
[378163035,1754755846019,-152.57967547,0.00021918,2]
[378163036,1754755846029,-460.0,0.00021947,2]
[378163037,1754755846039,-460.0,0.00021947,2]
[378163038,1754755846049,-460.0,0.00021947,2]
[378163039,1754755846060,-460.0,0.00021947,2]
[378163040,1754755846070,-460.0,0.00021947,2]
[378163041,1754755846081,-460.0,0.00021947,2]
[378163042,1754755846091,-628.81,0.00021947,2]
[378163043,1754755846102,-460.0,0.00021947,2]
[378163044,1754755846112,-460.0,0.00021947,2]
[378163045,1754755846122,-460.0,0.00021947,2]
[378163046,1754755846132,-460.0,0.00021947,2]
[378163047,1754755846142,-460.0,0.00021947,2]
[378163048,1754755846152,-460.0,0.00021947,2]
[378163049,1754755846162,-460.0,0.00021947,2]
[378163051,1754755846172,-460.0,0.00021947,2]
[378163053,1754755846182,-460.0,0.00021947,2]
[378163055,1754755846192,-460.0,0.00021947,2]
[378163057,1754755846202,-460.0,0.00021947,2]
[378163058,1754755846212,-585.25,0.00021947,2]
[378163059,1754755846222,-520.17087232,0.00021947,2]
[378163060,1754755846232,-460.0,0.00021947,2]
[378163061,1754755846242,-460.0,0.00021947,2]
[378163062,1754755846251,-460.0,0.00021947,2]
[378163064,1754755846261,-500.0,0.00021947,2]
[378163066,1754755846271,-597.52,0.00021947,2]
[378163068,1754755846281,-460.0,0.00021947,2]
[378163069,1754755846290,-460.0,0.00021947,2]
[378163070,1754755846300,-460.0,0.00021947,2]
[378163071,1754755846310,-460.0,0.00021947,2]
[378163072,1754755846320,-461.01866813,0.00021947,2]
[378163073,1754755846331,-460.0,0.00021947,2]
[378163074,1754755846341,-1788.84,0.00021947,2]
[378163075,1754755846351,-460.0,0.00021947,2]
[378163076,1754755846361,-460.0,0.00021947,2]
[378163077,1754755846371,-460.0,0.00021947,2]
[378163078,1754755846381,-460.0,0.00021947,2]
[378163079,1754755846392,-472.29365182,0.00021947,2]
[378163080,1754755846402,-460.0,0.00021948,2]
[378163081,1754755846412,-460.0,0.00021948,2]
[378163082,1754755846422,-460.0,0.00021948,2]
[378163083,1754755846431,-463.9915542,0.00021948,2]
[378163084,1754755846441,-460.0,0.00021948,2]
[378163085,1754755846451,-460.0,0.00021948,2]
[378163086,1754755846464,-460.0,0.00021948,2]
[378163087,1754755846474,-460.0,0.00021948,2]
[378163088,1754755846484,-319.70246419,0.00021948,2]
[378163089,1754755846494,-460.0,0.00021948,2]
[378163090,1754755846505,-460.0,0.00021948,2]
[378163091,1754755846515,-460.0,0.00021948,2]
[378163092,1754755846525,-460.0,0.00021948,2]
[378163093,1754755846536,-460.0,0.00021948,2]
[378163094,1754755846547,-460.0,0.00021948,2]
[378163095,1754755846557,-460.0,0.00021948,2]
[378163096,1754755846567,-460.0,0.00021948,2]
[378163097,1754755846578,-460.0,0.00021948,2]
[378163098,1754755846588,-460.0,0.00021948,2]
[378163099,1754755846599,-460.0,0.00021948,2]
[378163100,1754755846609,-462.80880441,0.00021948,2]
[378163101,1754755846619,-460.0,0.00021948,2]
[378163102,1754755846629,-471.03183727,0.00021948,2]
[378163103,1754755846639,-460.0,0.00021948,2]
[378163104,1754755846649,-460.0,0.00021948,2]
[378163105,1754755846659,-460.0,0.00021948,2]
[378163106,1754755846668,-460.0,0.00021948,2]
[378163107,1754755846678,-460.0,0.00021948,2]
[378163108,1754755846688,-460.0,0.00021948,2]
[378163109,1754755846698,-460.0,0.00021948,2]
[378163110,1754755846707,-460.0,0.00021948,2]
[378163111,1754755846717,-460.0,0.00021948,2]
[378163112,1754755846727,-460.0,0.00021948,2]
[378163113,1754755846736,-460.0,0.00021948,2]
[378163114,1754755846746,-460.0,0.00021948,2]
[378163115,1754755846756,-460.0,0.00021948,2]
[378163116,1754755846766,-460.0,0.00021948,2]
[378163117,1754755846775,-460.0,0.00021948,2]
[378163118,1754755846785,-460.0,0.00021948,2]
[378163119,1754755846795,-463.83297851,0.00021948,2]
[378163120,1754755846805,-460.0,0.00021948,2]
[378163121,1754755846814,-460.0,0.00021948,2]
[378163122,1754755846824,-460.0,0.00021948,2]
[378163123,1754755846834,-460.0,0.00021948,2]
[378163124,1754755846844,-460.0,0.00021948,2]
[378163125,1754755846854,-477.31128985,0.00021948,2]
[378163126,1754755846864,-460.0,0.00021948,2]
[378163127,1754755846873,-460.0,0.00021948,2]
[378163128,1754755846883,-460.0,0.00021948,2]
[378163129,1754755846893,-462.1903293,0.00021948,2]
[378163130,1754755846902,-460.0,0.00021948,2]
[378163131,1754755846912,-460.0,0.00021948,2]
[378163132,1754755846922,-463.31932666,0.00021948,2]
[378163133,1754755846931,-460.0,0.00021948,2]
[378163134,1754755846941,-460.0,0.00021948,2]
[378163135,1754755846950,-460.0,0.00021948,2]
[378163136,1754755846960,-460.0,0.00021948,2]
[378163137,1754755846969,-460.0,0.00021948,2]
[378163138,1754755846979,-460.0,0.00021948,2]
[378163139,1754755846988,-465.60621705,0.00021948,2]
[378163140,1754755846998,-460.0,0.00021948,2]
[378163141,1754755847007,-487.96270914,0.00021948,2]
[378163142,1754755847017,-460.0,0.00021956,2]
[378163143,1754755847030,-990.4,0.00021956,2]
[378163144,1754755847041,-460.0,0.00021956,2]
[378163145,1754755847051,-460.0,0.00021956,2]
[378163146,1754755847060,-583.12,0.00021956,2]
[378163147,1754755847070,-460.0,0.00021956,2]
[378163148,1754755847080,-495.89,0.00021956,2]
[378163149,1754755847089,-460.0,0.00021956,2]
[378163150,1754755847099,-1042.63,0.00021956,2]
[378163151,1754755847108,-460.0,0.00021956,2]
[378163152,1754755847118,-595.41,0.00021956,2]
[378163153,1754755847127,-460.0,0.00021956,2]
[378163154,1754755847137,-460.0,0.00021957,2]
[378163155,1754755847147,-460.0,0.00021957,2]
[378163156,1754755847157,-460.0,0.00021957,2]
[378163157,1754755847166,-460.0,0.00021957,2]
[378163158,1754755847175,-754.9,0.00021957,2]
[378163159,1754755847185,-362.1,0.00021957,2]
[378163160,1754755847195,-460.0,0.00021957,2]
[378163161,1754755847204,-464.75964567,0.00021957,2]
[378163162,1754755847214,-460.0,0.00021957,2]
[378163163,1754755847224,-460.0,0.00021957,2]
[378163164,1754755847233,-460.0,0.00021957,2]
[378163165,1754755847243,-460.0,0.00021957,2]
[378163166,1754755847252,-476.10203087,0.00021957,2]
[378163167,1754755847262,-460.0,0.00021957,2]
[378163168,1754755847272,-460.0,0.00021957,2]
[378163169,1754755847282,-460.0,0.00021957,2]
[378163170,1754755847292,-460.0,0.00021957,2]
[378163171,1754755847301,-500.0,0.00021973,2]
[378163172,1754755847311,-611.52703329,0.00021973,2]
[378163173,1754755847320,-600.0,0.00021973,2]
[378163174,1754755847330,-500.0,0.00021973,2]
[378163175,1754755847340,-500.0,0.00021973,2]
[378163176,1754755847350,-500.0,0.00021973,2]
[378163177,1754755847360,-500.0,0.00021973,2]
[378163178,1754755847369,-500.0,0.00021973,2]
[378163179,1754755847381,-437.32267485,0.00021973,2]
[378163180,1754755847391,-150.0,0.00021973,2]
[378163181,1754755847401,-500.0,0.00021973,2]
[378163182,1754755847410,-500.0,0.00021973,2]
[378163183,1754755847419,-500.0,0.00021973,2]
[378163184,1754755847429,-500.0,0.00021973,2]
[378163185,1754755847438,-155.2313519,0.00021973,2]
[378163186,1754755847447,-500.0,0.00021973,2]
[378163187,1754755847460,-500.0,0.00021973,2]
[378163188,1754755847471,-500.86414136,0.00021973,2]
[378163189,1754755847481,-500.0,0.00021973,2]
[378163190,1754755847491,-160.01729465,0.00021973,2]
[378163191,1754755847500,-500.0,0.00021973,2]
[378163192,1754755847510,-500.0,0.00021973,2]
[378163193,1754755847519,-500.0,0.00021973,2]
[378163194,1754755847529,-461.86162573,0.00021974,2]
[378163195,1754755847539,-200.0,0.00021983,15]
[378163196,1754755847549,-200.0,0.00021983,15]
[378163197,1754755847558,-40281.21195422,0.0002199,2]
[378163198,1754755847567,-219.0,0.00022,2]
[378163199,1754755847577,-20000.0,0.00022,7]
[378163200,1754755847587,-160.0,0.00022,7]
[378163201,1754755847596,-168.0,0.00022,2]
[378163202,1754755847606,-461.55179734,0.00022,7]
[378163203,1754755847616,-824.03,0.00022101,2]
[378163204,1754755847626,-460.0,0.00022101,2]
[378163205,1754755847636,-2116.47,0.00022101,2]
[378163206,1754755847646,-460.0,0.00022101,2]
[378163207,1754755847656,-460.0,0.00022101,2]
[378163208,1754755847665,-265.12653034,0.00022101,2]
[378163209,1754755847675,-460.0,0.00022101,2]
[378163210,1754755847684,-1719.64,0.00022101,2]
[378163211,1754755847695,-1421.88,0.00022101,2]
[378163212,1754755847704,-460.0,0.00022101,2]
[378163213,1754755847714,-460.0,0.00022101,2]
[378163214,1754755847723,-460.0,0.00022101,2]
[378163215,1754755847734,-460.0,0.00022101,2]
[378163216,1754755847744,-460.0,0.00022101,2]
[378163217,1754755847754,-460.0,0.00022101,2]
[378163218,1754755847764,-710.3,0.00022101,2]
[378163219,1754755847774,-864.02,0.00022101,2]
[378163220,1754755847783,-659.44,0.00022101,2]
[378163221,1754755847793,-460.0,0.00022101,2]
[378163222,1754755847802,-460.0,0.00022101,2]